[Event "Early-Titled-Tuesday-Blitz-September-26-2023"]
[Site "Chess.com"]
[Date "2023.09.26"]
[Round "11"]
[White "Djager97"]
[Black "Flawless_Fighter"]
[Result "1-0"]
[WhiteElo "2576"]
[BlackElo "2801"]
[TimeControl "180+1"]
[EndTime "10:06:36 PDT"]
[Termination "Djager97 won by resignation"]

1. e4 {[%clk 0:03:00.9]} 1... c6 {[%clk 0:03:00]} 2. d4 {[%clk 0:03:00.7]} 2...
d5 {[%clk 0:03:00.9]} 3. exd5 {[%clk 0:03:01.6]} 3... cxd5 {[%clk 0:03:01.3]} 4.
Bd3 {[%clk 0:03:02.2]} 4... Nc6 {[%clk 0:03:01.8]} 5. c3 {[%clk 0:03:02.1]} 5...
Qc7 {[%clk 0:03:02.3]} 6. h3 {[%clk 0:03:01.5]} 6... e5 {[%clk 0:03:01.8]} 7.
dxe5 {[%clk 0:03:01.2]} 7... Nxe5 {[%clk 0:03:02.7]} 8. Nf3 {[%clk 0:03:01.6]}
8... Nxd3+ {[%clk 0:03:02.9]} 9. Qxd3 {[%clk 0:03:02.5]} 9... Bd6 {[%clk
0:03:02.9]} 10. O-O {[%clk 0:03:02.6]} 10... Ne7 {[%clk 0:03:03.1]} 11. Nbd2
{[%clk 0:02:52.5]} 11... O-O {[%clk 0:03:02.4]} 12. Nb3 {[%clk 0:02:53.2]} 12...
Bf5 {[%clk 0:03:02]} 13. Qd1 {[%clk 0:02:48.5]} 13... a5 {[%clk 0:03:01.6]} 14.
Nbd4 {[%clk 0:02:47]} 14... Bd7 {[%clk 0:03:01]} 15. Be3 {[%clk 0:02:40.3]}
15... Rae8 {[%clk 0:02:57.9]} 16. Re1 {[%clk 0:02:37.2]} 16... h6 {[%clk
0:02:56.4]} 17. Qd3 {[%clk 0:02:30.6]} 17... Qc8 {[%clk 0:02:53.1]} 18. Rac1
{[%clk 0:02:22.9]} 18... Ng6 {[%clk 0:02:44.2]} 19. Nb5 {[%clk 0:02:06.3]} 19...
Bb8 {[%clk 0:02:35.8]} 20. a4 {[%clk 0:01:44.2]} 20... Bxh3 {[%clk 0:02:32.1]}
21. Qxd5 {[%clk 0:01:31.5]} 21... Bxg2 {[%clk 0:02:18.2]} 22. Kxg2 {[%clk
0:01:16.9]} 22... Qg4+ {[%clk 0:02:18.1]} 23. Kf1 {[%clk 0:01:17.6]} 23... Qh3+
{[%clk 0:02:18]} 24. Kg1 {[%clk 0:01:15.8]} 24... Nh4 {[%clk 0:01:59.3]} 25.
Nxh4 {[%clk 0:01:09]} 25... Rxe3 {[%clk 0:00:57.6]} 26. fxe3 {[%clk 0:00:58.7]}
26... Bh2+ {[%clk 0:00:35.8]} 27. Kf2 {[%clk 0:00:56.8]} 27... Bg3+ {[%clk
0:00:35.5]} 28. Ke2 {[%clk 0:00:56.3]} 28... Bxe1 {[%clk 0:00:28.1]} 29. Rxe1
{[%clk 0:00:49.7]} 29... Qxh4 {[%clk 0:00:28.2]} 30. Nd4 {[%clk 0:00:46.9]}
30... Qh2+ {[%clk 0:00:25]} 31. Kd3 {[%clk 0:00:42.6]} 31... Qxb2 {[%clk
0:00:25.3]} 32. Nf5 {[%clk 0:00:28.8]} 32... Qb6 {[%clk 0:00:14.9]} 33. Kc2
{[%clk 0:00:20.2]} 33... Rd8 {[%clk 0:00:12.1]} 34. Qe5 {[%clk 0:00:20.7]} 34...
Qg6 {[%clk 0:00:07.9]} 35. e4 {[%clk 0:00:15.9]} 35... Kh8 {[%clk 0:00:07.7]}
36. Qe7 {[%clk 0:00:09.4]} 36... Rc8 {[%clk 0:00:07.4]} 37. Rd1 {[%clk
0:00:08.1]} 37... Qg2+ {[%clk 0:00:06.4]} 38. Rd2 {[%clk 0:00:07.2]} 38... Qf3
{[%clk 0:00:05.1]} 39. Qe5 {[%clk 0:00:07.3]} 39... Qg4 {[%clk 0:00:04.4]} 40.
Rd3 {[%clk 0:00:06.3]} 40... Qg2+ {[%clk 0:00:04.3]} 41. Kb3 {[%clk 0:00:06.4]}
41... Qg1 {[%clk 0:00:04.5]} 42. Kb2 {[%clk 0:00:03.1]} 42... Qg2+ {[%clk
0:00:05]} 43. Kb3 {[%clk 0:00:03.2]} 43... Qg1 {[%clk 0:00:05.3]} 44. Rd2 {[%clk
0:00:03.6]} 44... Qb6+ {[%clk 0:00:05.2]} 45. Kc2 {[%clk 0:00:03.5]} 45... Rg8
{[%clk 0:00:03.9]} 46. Rg2 {[%clk 0:00:03.1]} 46... Qc6 {[%clk 0:00:03.6]} 47.
Rxg7 {[%clk 0:00:02.3]} 47... Qxa4+ {[%clk 0:00:04.2]} 48. Kd2 {[%clk
0:00:02.3]} 48... Qd7+ {[%clk 0:00:03]} 49. Ke3 {[%clk 0:00:02.4]} 49... f6
{[%clk 0:00:02.1]} 50. Rxg8+ {[%clk 0:00:01.1]} 50... Kxg8 {[%clk 0:00:03]} 51.
Qxf6 {[%clk 0:00:01.6]} 51... Qh7 {[%clk 0:00:02.6]} 52. Ne7+ {[%clk 0:00:01.7]}
52... Qxe7 {[%clk 0:00:03.2]} 53. Qxe7 {[%clk 0:00:02.3]} 53... h5 {[%clk
0:00:04.1]} 54. Qxb7 {[%clk 0:00:02.4]} 54... Kf8 {[%clk 0:00:05]} 55. Qb6
{[%clk 0:00:02]} 55... h4 {[%clk 0:00:05.9]} 56. Qh6+ {[%clk 0:00:02.3]} 56...
Kf7 {[%clk 0:00:05.9]} 57. Qxh4 {[%clk 0:00:03.2]} 57... Ke6 {[%clk 0:00:06.8]}
58. Kd4 {[%clk 0:00:03.9]} 1-0

[Event "Early-Titled-Tuesday-Blitz-September-26-2023"]
[Site "Chess.com"]
[Date "2023.09.26"]
[Round "11"]
[White "Predator0608"]
[Black "Defenstrator"]
[Result "1-0"]
[WhiteElo "2501"]
[BlackElo "2377"]
[TimeControl "180+1"]
[EndTime "10:06:38 PDT"]
[Termination "Predator0608 won by resignation"]

1. e4 {[%clk 0:03:00.9]} 1... g6 {[%clk 0:02:58]} 2. d4 {[%clk 0:03:00.2]} 2...
Bg7 {[%clk 0:02:58.2]} 3. Nc3 {[%clk 0:03:00.1]} 3... c5 {[%clk 0:02:59.1]} 4.
Nf3 {[%clk 0:02:52.5]} 4... cxd4 {[%clk 0:02:58.2]} 5. Nxd4 {[%clk 0:02:53.4]}
5... Nc6 {[%clk 0:02:54.4]} 6. Be3 {[%clk 0:02:53.8]} 6... Nf6 {[%clk
0:02:53.5]} 7. Bc4 {[%clk 0:02:54]} 7... O-O {[%clk 0:02:49.8]} 8. f3 {[%clk
0:02:54.2]} 8... Qb6 {[%clk 0:02:47.7]} 9. Bb3 {[%clk 0:02:54.5]} 9... Nxe4
{[%clk 0:02:42.3]} 10. Nd5 {[%clk 0:02:54.6]} 10... Qa5+ {[%clk 0:02:29.8]} 11.
c3 {[%clk 0:02:55.1]} 11... Nc5 {[%clk 0:02:19.7]} 12. Nxc6 {[%clk 0:02:54.9]}
12... dxc6 {[%clk 0:02:15.5]} 13. Nxe7+ {[%clk 0:02:55.8]} 13... Kh8 {[%clk
0:02:16.4]} 14. Nxc8 {[%clk 0:02:56.7]} 14... Raxc8 {[%clk 0:01:54]} 15. O-O
{[%clk 0:02:57]} 15... Rcd8 {[%clk 0:01:38.2]} 16. Qc2 {[%clk 0:02:54.2]} 16...
Qb5 {[%clk 0:01:29.6]} 17. Rad1 {[%clk 0:02:50.5]} 17... Nxb3 {[%clk 0:01:23.8]}
18. axb3 {[%clk 0:02:39.8]} 18... Rfe8 {[%clk 0:01:18.8]} 19. Rxd8 {[%clk
0:01:43.5]} 19... Rxd8 {[%clk 0:01:19.3]} 20. Rd1 {[%clk 0:01:44.3]} 20... Bf6
{[%clk 0:01:03.7]} 21. Rxd8+ {[%clk 0:01:36.8]} 21... Bxd8 {[%clk 0:01:04.3]}
22. Qe4 {[%clk 0:01:37.3]} 22... Bb6 {[%clk 0:00:52.7]} 23. b4 {[%clk
0:01:25.6]} 23... Qe2 {[%clk 0:00:36.8]} 24. Bxb6 {[%clk 0:00:50.2]} 24... Qxe4
{[%clk 0:00:23.2]} 25. fxe4 {[%clk 0:00:51.1]} 25... axb6 {[%clk 0:00:24.1]} 26.
Kf2 {[%clk 0:00:52]} 26... Kg7 {[%clk 0:00:25]} 27. Ke3 {[%clk 0:00:52.9]} 27...
Kf6 {[%clk 0:00:25.9]} 28. Kf4 {[%clk 0:00:49.6]} 28... Ke6 {[%clk 0:00:25.5]}
29. Kg5 {[%clk 0:00:18.9]} 29... Ke5 {[%clk 0:00:24.4]} 30. Kh6 {[%clk 0:00:19]}
30... Kxe4 {[%clk 0:00:24.7]} 31. Kxh7 {[%clk 0:00:19.7]} 31... g5 {[%clk
0:00:18.9]} 32. Kg7 {[%clk 0:00:19.8]} 32... f5 {[%clk 0:00:18.7]} 33. Kg6
{[%clk 0:00:19.8]} 33... Kf4 {[%clk 0:00:12.1]} 34. h3 {[%clk 0:00:17.2]} 34...
g4 {[%clk 0:00:11.7]} 35. h4 {[%clk 0:00:17.6]} 35... Kg3 {[%clk 0:00:12.4]} 36.
h5 {[%clk 0:00:18.5]} 36... f4 {[%clk 0:00:11]} 37. h6 {[%clk 0:00:19.4]} 37...
f3 {[%clk 0:00:11.9]} 38. gxf3 {[%clk 0:00:16.7]} 38... gxf3 {[%clk 0:00:12.8]}
39. h7 {[%clk 0:00:17.6]} 39... f2 {[%clk 0:00:13.7]} 40. h8=Q {[%clk
0:00:18.3]} 40... f1=Q {[%clk 0:00:14.6]} 41. Qe5+ {[%clk 0:00:18.9]} 41... Kg4
{[%clk 0:00:13.4]} 42. Qd4+ {[%clk 0:00:18.4]} 42... Kg3 {[%clk 0:00:10.2]} 43.
Qxb6 {[%clk 0:00:19.1]} 43... Qd3+ {[%clk 0:00:08.7]} 44. Kf6 {[%clk 0:00:19.8]}
44... Qf3+ {[%clk 0:00:07.3]} 45. Ke7 {[%clk 0:00:19.7]} 45... Qe2+ {[%clk
0:00:07.7]} 46. Kd7 {[%clk 0:00:19.6]} 46... Qxb2 {[%clk 0:00:08.5]} 47. Qd4
{[%clk 0:00:15.3]} 47... Qb3 {[%clk 0:00:05.6]} 48. Kc7 {[%clk 0:00:15.7]} 48...
b5 {[%clk 0:00:05.6]} 49. Kb6 {[%clk 0:00:15]} 49... Qe6 {[%clk 0:00:04.4]} 50.
Kc5 {[%clk 0:00:15.3]} 50... Kf3 {[%clk 0:00:03.6]} 51. Qd3+ {[%clk 0:00:14.7]}
51... Kf4 {[%clk 0:00:04.4]} 52. Qd6+ {[%clk 0:00:14.9]} 52... Qxd6+ {[%clk
0:00:02.2]} 53. Kxd6 {[%clk 0:00:15.8]} 53... Ke4 {[%clk 0:00:03.1]} 54. Kxc6
{[%clk 0:00:16.3]} 54... Kd3 {[%clk 0:00:04]} 55. Kxb5 {[%clk 0:00:16.9]} 55...
Kxc3 {[%clk 0:00:04.9]} 56. Kc5 {[%clk 0:00:17.8]} 1-0

[Event "Early-Titled-Tuesday-Blitz-September-26-2023"]
[Site "Chess.com"]
[Date "2023.09.26"]
[Round "11"]
[White "hakanazeri2"]
[Black "ChessQueen"]
[Result "1/2-1/2"]
[WhiteElo "2632"]
[BlackElo "2732"]
[TimeControl "180+1"]
[EndTime "10:06:43 PDT"]
[Termination "Game drawn by repetition"]

1. Nf3 {[%clk 0:02:51.5]} 1... d5 {[%clk 0:02:57.6]} 2. d4 {[%clk 0:02:50]} 2...
Nf6 {[%clk 0:02:57.2]} 3. c4 {[%clk 0:02:50.2]} 3... e6 {[%clk 0:02:57.6]} 4. g3
{[%clk 0:02:50.4]} 4... dxc4 {[%clk 0:02:57]} 5. Qa4+ {[%clk 0:02:46]} 5... c6
{[%clk 0:02:54.2]} 6. Qxc4 {[%clk 0:02:45.7]} 6... b5 {[%clk 0:02:54.6]} 7. Qb3
{[%clk 0:02:41.9]} 7... Bb7 {[%clk 0:02:50]} 8. Bg2 {[%clk 0:02:41.4]} 8... a6
{[%clk 0:02:49.1]} 9. a4 {[%clk 0:02:32.6]} 9... Nbd7 {[%clk 0:02:44.6]} 10. O-O
{[%clk 0:02:29.9]} 10... c5 {[%clk 0:02:30.2]} 11. axb5 {[%clk 0:02:28.2]} 11...
Bd5 {[%clk 0:02:30.3]} 12. Qd3 {[%clk 0:02:23.1]} 12... Be4 {[%clk 0:02:22.6]}
13. Qb3 {[%clk 0:02:04.3]} 13... Bd5 {[%clk 0:02:22.6]} 14. Qd3 {[%clk
0:02:02.1]} 14... c4 {[%clk 0:02:21.9]} 15. Qc2 {[%clk 0:01:52.7]} 15... axb5
{[%clk 0:02:21.2]} 16. Rxa8 {[%clk 0:01:52.7]} 16... Qxa8 {[%clk 0:02:14.2]} 17.
Nc3 {[%clk 0:01:52.7]} 17... Bc6 {[%clk 0:02:11.1]} 18. d5 {[%clk 0:01:28.4]}
18... exd5 {[%clk 0:01:53.5]} 19. Nd4 {[%clk 0:01:27.9]} 19... Bc5 {[%clk
0:01:53.6]} 20. Nxc6 {[%clk 0:01:14.9]} 20... Qxc6 {[%clk 0:01:53.2]} 21. Rd1
{[%clk 0:01:15.5]} 21... Nb6 {[%clk 0:01:35.5]} 22. e4 {[%clk 0:00:59.5]} 22...
O-O {[%clk 0:00:55.4]} 23. exd5 {[%clk 0:00:59]} 23... Qd7 {[%clk 0:00:53.3]}
24. Ne4 {[%clk 0:00:42.9]} 24... Nxe4 {[%clk 0:00:52.7]} 25. Bxe4 {[%clk
0:00:42.8]} 25... g6 {[%clk 0:00:52.5]} 26. Bf4 {[%clk 0:00:40.5]} 26... Re8
{[%clk 0:00:52]} 27. Bf3 {[%clk 0:00:38.3]} 27... Bd6 {[%clk 0:00:48.3]} 28. Be3
{[%clk 0:00:36.3]} 28... Na4 {[%clk 0:00:46.3]} 29. Bd4 {[%clk 0:00:34.5]} 29...
Nc5 {[%clk 0:00:40.3]} 30. Bxc5 {[%clk 0:00:20.6]} 30... Bxc5 {[%clk 0:00:40.7]}
31. b3 {[%clk 0:00:18.7]} 31... Rc8 {[%clk 0:00:34.7]} 32. bxc4 {[%clk
0:00:18.7]} 32... bxc4 {[%clk 0:00:35.6]} 33. Qe2 {[%clk 0:00:12.3]} 33... c3
{[%clk 0:00:31.6]} 34. Bg4 {[%clk 0:00:12.5]} 34... f5 {[%clk 0:00:31.7]} 35.
Bf3 {[%clk 0:00:12.4]} 35... Bd6 {[%clk 0:00:21.8]} 36. Rc1 {[%clk 0:00:11.6]}
36... Qe7 {[%clk 0:00:18.4]} 37. Qa6 {[%clk 0:00:07.3]} 37... Qc7 {[%clk
0:00:14]} 38. Qc6 {[%clk 0:00:06.2]} 38... Qd8 {[%clk 0:00:11.5]} 39. Qa6 {[%clk
0:00:04.3]} 39... Qc7 {[%clk 0:00:11.2]} 40. Qc6 {[%clk 0:00:04.4]} 40... Qd8
{[%clk 0:00:11.2]} 41. Qa6 {[%clk 0:00:04.7]} 41... Rc5 {[%clk 0:00:11.5]} 42.
Kg2 {[%clk 0:00:02.4]} 42... Qc7 {[%clk 0:00:10.8]} 43. Qa8+ {[%clk 0:00:02.8]}
43... Kg7 {[%clk 0:00:11.4]} 44. Qa4 {[%clk 0:00:02.7]} 44... c2 {[%clk
0:00:11]} 45. Qb3 {[%clk 0:00:02.4]} 45... Be5 {[%clk 0:00:10.3]} 46. Be2 {[%clk
0:00:02.6]} 46... Rc3 {[%clk 0:00:09.8]} 47. Qb5 {[%clk 0:00:01.7]} 47... Qd6
{[%clk 0:00:08.6]} 48. Bd3 {[%clk 0:00:01.9]} 48... Rc5 {[%clk 0:00:08.7]} 49.
Qb3 {[%clk 0:00:02.1]} 49... Qxd5+ {[%clk 0:00:08.6]} 50. Qxd5 {[%clk
0:00:02.3]} 50... Rxd5 {[%clk 0:00:09.5]} 51. Bxc2 {[%clk 0:00:03.1]} 51... Rc5
{[%clk 0:00:09.9]} 52. Re1 {[%clk 0:00:02.8]} 52... Rxc2 {[%clk 0:00:08]} 53.
Rxe5 {[%clk 0:00:02.9]} 53... Kf6 {[%clk 0:00:08.6]} 54. Ra5 {[%clk 0:00:03.5]}
54... h5 {[%clk 0:00:07.9]} 55. Ra6+ {[%clk 0:00:03.9]} 55... Kg7 {[%clk
0:00:08]} 56. h4 {[%clk 0:00:04.4]} 56... Rc4 {[%clk 0:00:07.8]} 57. Ra7+ {[%clk
0:00:04.2]} 57... Kf6 {[%clk 0:00:07.6]} 58. f4 {[%clk 0:00:04.6]} 58... Rd4
{[%clk 0:00:07.4]} 59. Kh3 {[%clk 0:00:04.8]} 59... Rc4 {[%clk 0:00:07.3]} 60.
Ra6+ {[%clk 0:00:05]} 60... Kf7 {[%clk 0:00:07.3]} 61. Ra7+ {[%clk 0:00:05.5]}
61... Kf6 {[%clk 0:00:07.7]} 62. Ra6+ {[%clk 0:00:06.1]} 62... Kf7 {[%clk
0:00:08.3]} 63. Ra7+ {[%clk 0:00:06.8]} 63... Kf6 {[%clk 0:00:08.9]} 1/2-1/2

[Event "Early-Titled-Tuesday-Blitz-September-26-2023"]
[Site "Chess.com"]
[Date "2023.09.26"]
[Round "11"]
[White "FlemingA"]
[Black "Vesper2018"]
[Result "0-1"]
[WhiteElo "2440"]
[BlackElo "2584"]
[TimeControl "180+1"]
[EndTime "10:06:48 PDT"]
[Termination "Vesper2018 won by checkmate"]

1. e4 {[%clk 0:02:58.6]} 1... c5 {[%clk 0:02:59.7]} 2. Nf3 {[%clk 0:02:58.8]}
2... d6 {[%clk 0:03:00.4]} 3. d4 {[%clk 0:02:59.1]} 3... cxd4 {[%clk 0:03:00.7]}
4. Qxd4 {[%clk 0:03:00]} 4... a6 {[%clk 0:02:59.1]} 5. Be2 {[%clk 0:02:59.6]}
5... Nc6 {[%clk 0:02:58.3]} 6. Qe3 {[%clk 0:03:00.2]} 6... g6 {[%clk 0:02:57.9]}
7. O-O {[%clk 0:02:58.5]} 7... Bg7 {[%clk 0:02:58.4]} 8. h3 {[%clk 0:02:58.7]}
8... Nf6 {[%clk 0:02:57.3]} 9. Rd1 {[%clk 0:02:59.4]} 9... O-O {[%clk
0:02:54.7]} 10. e5 {[%clk 0:02:52.5]} 10... Ne8 {[%clk 0:02:52.4]} 11. exd6
{[%clk 0:02:35.4]} 11... Nxd6 {[%clk 0:02:51.9]} 12. c4 {[%clk 0:02:35.4]} 12...
Qa5 {[%clk 0:02:46]} 13. Bd2 {[%clk 0:02:34.9]} 13... Qc7 {[%clk 0:02:34.5]} 14.
Bc3 {[%clk 0:02:25.1]} 14... Nf5 {[%clk 0:02:33.9]} 15. Qc1 {[%clk 0:02:15.3]}
15... e5 {[%clk 0:02:33.3]} 16. Nbd2 {[%clk 0:02:08.6]} 16... Nfd4 {[%clk
0:02:30.3]} 17. Bxd4 {[%clk 0:02:00.8]} 17... Nxd4 {[%clk 0:02:28.7]} 18. Nxd4
{[%clk 0:02:00.2]} 18... exd4 {[%clk 0:02:29]} 19. Bd3 {[%clk 0:01:56.8]} 19...
Bh6 {[%clk 0:02:18.5]} 20. Qc2 {[%clk 0:01:54.9]} 20... Qf4 {[%clk 0:02:18.3]}
21. Nf1 {[%clk 0:01:43.9]} 21... Be6 {[%clk 0:02:09.5]} 22. Re1 {[%clk
0:01:32.1]} 22... Rac8 {[%clk 0:02:05.2]} 23. Qa4 {[%clk 0:01:32.1]} 23... Qd6
{[%clk 0:01:57.4]} 24. Ng3 {[%clk 0:01:27.9]} 24... f5 {[%clk 0:01:53.3]} 25.
Re2 {[%clk 0:00:56.5]} 25... Bf7 {[%clk 0:01:52]} 26. Rae1 {[%clk 0:00:55.3]}
26... Rc7 {[%clk 0:01:45.9]} 27. b3 {[%clk 0:00:44]} 27... Rfc8 {[%clk
0:01:38.8]} 28. Qa5 {[%clk 0:00:15]} 28... Bg7 {[%clk 0:01:28.7]} 29. Qd2 {[%clk
0:00:13.5]} 29... Bf6 {[%clk 0:01:13.9]} 30. Qb2 {[%clk 0:00:08.8]} 30... h5
{[%clk 0:01:07.3]} 31. Nf1 {[%clk 0:00:09.3]} 31... h4 {[%clk 0:01:06.1]} 32.
Nd2 {[%clk 0:00:09.7]} 32... Qf4 {[%clk 0:01:05.1]} 33. Nf3 {[%clk 0:00:10]}
33... Kg7 {[%clk 0:00:54.2]} 34. Qd2 {[%clk 0:00:10.5]} 34... Qxd2 {[%clk
0:00:50.1]} 35. Rxd2 {[%clk 0:00:11.4]} 35... Rd8 {[%clk 0:00:44.6]} 36. Kf1
{[%clk 0:00:09.2]} 36... Rc5 {[%clk 0:00:41.9]} 37. Rde2 {[%clk 0:00:09]} 37...
b5 {[%clk 0:00:40.3]} 38. cxb5 {[%clk 0:00:09.2]} 38... axb5 {[%clk 0:00:40.6]}
39. Rd2 {[%clk 0:00:05.7]} 39... b4 {[%clk 0:00:40.2]} 40. Ree2 {[%clk
0:00:03.9]} 40... Rc3 {[%clk 0:00:40.2]} 41. Ne1 {[%clk 0:00:03.7]} 41... Rc1
{[%clk 0:00:39.7]} 42. Rc2 {[%clk 0:00:03.9]} 42... Rc8 {[%clk 0:00:39.9]} 43.
Rxc8 {[%clk 0:00:03.7]} 43... Rxc8 {[%clk 0:00:39.5]} 44. Rc2 {[%clk 0:00:04.6]}
44... Rc3 {[%clk 0:00:39.6]} 45. Ke2 {[%clk 0:00:04.1]} 45... Bd5 {[%clk
0:00:36.5]} 46. f3 {[%clk 0:00:02.9]} 46... Kf7 {[%clk 0:00:35.7]} 47. Kd2
{[%clk 0:00:02.6]} 47... Bg5+ {[%clk 0:00:35.5]} 48. Ke2 {[%clk 0:00:03.3]}
48... Ke6 {[%clk 0:00:35.4]} 49. Kf1 {[%clk 0:00:01.7]} 49... Ke5 {[%clk
0:00:34.8]} 50. Ke2 {[%clk 0:00:02.4]} 50... Kf4 {[%clk 0:00:34.9]} 51. Rd2
{[%clk 0:00:02.1]} 51... Kg3 {[%clk 0:00:34]} 52. Rc2 {[%clk 0:00:02.7]} 52...
Bf4 {[%clk 0:00:29.6]} 53. Rxc3 {[%clk 0:00:03.1]} 53... dxc3 {[%clk 0:00:28.1]}
54. Bc2 {[%clk 0:00:04]} 54... Be6 {[%clk 0:00:23.3]} 55. Bd3 {[%clk 0:00:03.4]}
55... g5 {[%clk 0:00:22.1]} 56. Kd1 {[%clk 0:00:03.7]} 56... g4 {[%clk
0:00:19.3]} 57. Bf1 {[%clk 0:00:03.9]} 57... Kf2 {[%clk 0:00:18.2]} 58. Be2
{[%clk 0:00:03.1]} 58... Bd2 {[%clk 0:00:16.1]} 59. Nd3+ {[%clk 0:00:02.6]}
59... Kxg2 {[%clk 0:00:16.7]} 60. fxg4 {[%clk 0:00:03.2]} 60... fxg4 {[%clk
0:00:16.8]} 61. hxg4 {[%clk 0:00:04.1]} 61... h3 {[%clk 0:00:17]} 62. g5 {[%clk
0:00:04.4]} 62... h2 {[%clk 0:00:17.3]} 63. Bf3+ {[%clk 0:00:02.5]} 63... Kxf3
{[%clk 0:00:17.4]} 64. g6 {[%clk 0:00:03.2]} 64... h1=Q+ {[%clk 0:00:17.4]} 65.
Kc2 {[%clk 0:00:04.1]} 65... Bf5 {[%clk 0:00:16.6]} 66. a3 {[%clk 0:00:03.8]}
66... Qf1 {[%clk 0:00:15]} 67. axb4 {[%clk 0:00:03.3]} 67... Qxd3+ {[%clk
0:00:15.2]} 68. Kd1 {[%clk 0:00:03.6]} 68... Qb1# {[%clk 0:00:14.6]} 0-1

[Event "Early-Titled-Tuesday-Blitz-September-26-2023"]
[Site "Chess.com"]
[Date "2023.09.26"]
[Round "11"]
[White "lamomiajunior"]
[Black "Zavgorodniy_Sergiy"]
[Result "0-1"]
[WhiteElo "2723"]
[BlackElo "2606"]
[TimeControl "180+1"]
[EndTime "10:06:57 PDT"]
[Termination "Zavgorodniy_Sergiy won on time"]

1. d4 {[%clk 0:03:00.9]} 1... Nf6 {[%clk 0:02:55.7]} 2. c4 {[%clk 0:03:01.5]}
2... e6 {[%clk 0:02:49.6]} 3. Nc3 {[%clk 0:03:02.2]} 3... Bb4 {[%clk 0:02:49]}
4. e3 {[%clk 0:03:00.7]} 4... b6 {[%clk 0:02:49.2]} 5. Ne2 {[%clk 0:02:49.5]}
5... Ne4 {[%clk 0:02:48.1]} 6. Qc2 {[%clk 0:02:45.6]} 6... Bb7 {[%clk
0:02:46.7]} 7. a3 {[%clk 0:02:45.5]} 7... Bxc3+ {[%clk 0:02:46.8]} 8. Nxc3
{[%clk 0:02:45.6]} 8... Nxc3 {[%clk 0:02:42.7]} 9. Qxc3 {[%clk 0:02:44.2]} 9...
O-O {[%clk 0:02:37.8]} 10. b3 {[%clk 0:02:34.1]} 10... Qh4 {[%clk 0:02:36.2]}
11. Bb2 {[%clk 0:02:31.9]} 11... Be4 {[%clk 0:02:31.5]} 12. Bd3 {[%clk
0:02:09.8]} 12... d6 {[%clk 0:01:53.8]} 13. Bxe4 {[%clk 0:01:55.1]} 13... Qxe4
{[%clk 0:01:54.7]} 14. O-O {[%clk 0:01:54.9]} 14... Nd7 {[%clk 0:01:53.7]} 15.
f3 {[%clk 0:01:55.1]} 15... Qg6 {[%clk 0:01:52.9]} 16. Rae1 {[%clk 0:01:52.4]}
16... e5 {[%clk 0:01:49.3]} 17. f4 {[%clk 0:01:44]} 17... exd4 {[%clk
0:01:25.5]} 18. exd4 {[%clk 0:01:33.4]} 18... Qf5 {[%clk 0:01:19.5]} 19. d5
{[%clk 0:01:21.1]} 19... Nf6 {[%clk 0:01:18.9]} 20. h3 {[%clk 0:00:57]} 20... h5
{[%clk 0:01:15.1]} 21. Qf3 {[%clk 0:00:43]} 21... Rfe8 {[%clk 0:01:07.3]} 22.
Rxe8+ {[%clk 0:00:27.2]} 22... Rxe8 {[%clk 0:01:06.2]} 23. Bxf6 {[%clk
0:00:27.4]} 23... gxf6 {[%clk 0:00:50.5]} 24. Kh2 {[%clk 0:00:26.3]} 24... Kf8
{[%clk 0:00:44]} 25. b4 {[%clk 0:00:23.8]} 25... Re4 {[%clk 0:00:39.8]} 26. c5
{[%clk 0:00:20.5]} 26... Qxd5 {[%clk 0:00:34]} 27. cxd6 {[%clk 0:00:17.7]} 27...
cxd6 {[%clk 0:00:33.1]} 28. Rd1 {[%clk 0:00:18.1]} 28... Qf5 {[%clk 0:00:27.8]}
29. Rf1 {[%clk 0:00:13.6]} 29... d5 {[%clk 0:00:24]} 30. Qg3 {[%clk 0:00:09.9]}
30... d4 {[%clk 0:00:20.6]} 31. Qd3 {[%clk 0:00:09.1]} 31... Qd5 {[%clk
0:00:19]} 32. Rc1 {[%clk 0:00:07.6]} 32... h4 {[%clk 0:00:18.6]} 33. Qf3 {[%clk
0:00:07.2]} 33... Qf5 {[%clk 0:00:16.9]} 34. Rf1 {[%clk 0:00:05.3]} 34... Re3
{[%clk 0:00:16]} 35. Qf2 {[%clk 0:00:04.8]} 35... Qh5 {[%clk 0:00:12.3]} 36. Qd2
{[%clk 0:00:04.2]} 36... Qe2 {[%clk 0:00:11.4]} 37. Qxd4 {[%clk 0:00:02.4]}
37... Rd3 {[%clk 0:00:09.4]} 38. Qf2 {[%clk 0:00:02]} 38... Rd2 {[%clk
0:00:08.3]} 39. Qxe2 {[%clk 0:00:01.6]} 39... Rxe2 {[%clk 0:00:09.2]} 40. Rf3
{[%clk 0:00:02.2]} 40... Ra2 {[%clk 0:00:09.1]} 41. Kg1 {[%clk 0:00:02.8]} 41...
Ke7 {[%clk 0:00:09.2]} 42. Rd3 {[%clk 0:00:03.6]} 42... Ke6 {[%clk 0:00:09]} 43.
Rf3 {[%clk 0:00:02.7]} 43... Kf5 {[%clk 0:00:09]} 44. Kh2 {[%clk 0:00:03.6]}
44... Ke4 {[%clk 0:00:09.1]} 45. Kg1 {[%clk 0:00:04.1]} 45... f5 {[%clk
0:00:09.2]} 46. Kh2 {[%clk 0:00:04.6]} 46... a5 {[%clk 0:00:09.4]} 47. bxa5
{[%clk 0:00:04.7]} 47... bxa5 {[%clk 0:00:09.8]} 48. Kg1 {[%clk 0:00:05.5]}
48... a4 {[%clk 0:00:10.1]} 49. Rc3 {[%clk 0:00:04.9]} 49... Kd4 {[%clk
0:00:08.8]} 50. Rf3 {[%clk 0:00:05.3]} 50... Rb2 {[%clk 0:00:07.3]} 51. Rf2
{[%clk 0:00:02.1]} 51... Rb3 {[%clk 0:00:06.2]} 52. Rd2+ {[%clk 0:00:01.4]}
52... Ke3 {[%clk 0:00:06.3]} 53. Rd5 {[%clk 0:00:01.8]} 53... Rxa3 {[%clk
0:00:04]} 54. Rxf5 {[%clk 0:00:02.1]} 54... Rb3 {[%clk 0:00:04.3]} 55. Ra5
{[%clk 0:00:01.9]} 55... a3 {[%clk 0:00:04.7]} 56. f5 {[%clk 0:00:02.8]} 56...
Kd3 {[%clk 0:00:03.7]} 57. f6 {[%clk 0:00:03.2]} 57... Kc2 {[%clk 0:00:04.1]}
58. Ra7 {[%clk 0:00:03.7]} 58... Kb2 {[%clk 0:00:04.2]} 59. g4 {[%clk
0:00:01.8]} 59... a2 {[%clk 0:00:04.5]} 60. Kf2 {[%clk 0:00:01.4]} 60... a1=Q
{[%clk 0:00:04.6]} 61. Rxa1 {[%clk 0:00:02.3]} 61... Kxa1 {[%clk 0:00:05]} 62.
g5 {[%clk 0:00:03.2]} 62... Rg3 {[%clk 0:00:04.3]} 0-1